[Event "Titled Tuesday Blitz July 26 Early 2022"]
[White "Papasimakopoulos, Alexandros"]
[Black "Ohanyan, Emin"]
[WhiteFideId "4244125"]
[BlackFideId "13312022"]
[WhiteElo "2340"]
[BlackElo "1927"]
[Result "0-1"]
[Round "09"]
[TimeControl "180+1"]
[Date "2022.07.26"]
[WhiteClock "0:00:01"]
[BlackClock "0:00:05"]

1. d4 {[%clk 0:02:54]}  Nf6 {[%clk 0:02:59]} 2. c4 {[%clk 0:02:54]}  e6 {[%clk 0:02:58]} 3. Nc3 {[%clk 0:02:52]}  Bb4 {[%clk 0:02:55]} 4. Qc2 {[%clk 0:02:52]}  d5 {[%clk 0:02:54]} 5. cxd5 {[%clk 0:02:49]}  exd5 {[%clk 0:02:55]} 6. Bg5 {[%clk 0:02:49]}  h6 {[%clk 0:02:54]} 7. Bh4 {[%clk 0:02:48]}  Nc6 {[%clk 0:02:55]} 8. e3 {[%clk 0:02:48]}  g5 {[%clk 0:02:49]} 9. Bg3 {[%clk 0:02:48]}  h5 {[%clk 0:02:49]} 10. Bb5 {[%clk 0:02:47]}  h4 {[%clk 0:02:34]} 11. Be5 {[%clk 0:02:46]}  O-O {[%clk 0:02:35]} 12. Bxc6 {[%clk 0:02:46]}  bxc6 {[%clk 0:02:35]} 13. h3 {[%clk 0:02:47]}  Ne4 {[%clk 0:02:21]} 14. Ne2 {[%clk 0:02:45]}  Bf5 {[%clk 0:02:21]} 15. Qa4 {[%clk 0:02:33]}  c5 {[%clk 0:02:14]} 16. O-O {[%clk 0:02:28]}  Rb8 {[%clk 0:02:07]} 17. dxc5 {[%clk 0:02:20]}  Nxc5 {[%clk 0:02:00]} 18. Qc6 {[%clk 0:02:18]}  Nd3 {[%clk 0:01:09]} 19. Bxc7 {[%clk 0:02:02]}  Rc8 {[%clk 0:01:08]} 20. Bxd8 {[%clk 0:01:52]}  Rxc6 {[%clk 0:01:09]} 21. Bxg5 {[%clk 0:01:51]}  Rg6 {[%clk 0:01:09]} 22. Bxh4 {[%clk 0:01:47]}  Bxh3 {[%clk 0:01:07]} 23. Bg3 {[%clk 0:01:46]}  Be6 {[%clk 0:01:05]} 24. a3 {[%clk 0:01:28]}  Ba5 {[%clk 0:01:02]} 25. b4 {[%clk 0:01:26]}  Bb6 {[%clk 0:01:03]} 26. Rab1 {[%clk 0:01:18]}  Rd8 {[%clk 0:00:53]} 27. Na4 {[%clk 0:01:07]}  Bf5 {[%clk 0:00:48]} 28. Nxb6 {[%clk 0:01:07]}  axb6 {[%clk 0:00:49]} 29. Nd4 {[%clk 0:01:07]}  Be4 {[%clk 0:00:49]} 30. Rb3 {[%clk 0:01:01]}  Rc8 {[%clk 0:00:35]} 31. a4 {[%clk 0:00:59]}  Ra8 {[%clk 0:00:34]} 32. Ra1 {[%clk 0:00:58]}  Kg7 {[%clk 0:00:33]} 33. a5 {[%clk 0:00:54]}  Rh6 {[%clk 0:00:33]} 34. f3 {[%clk 0:00:28]}  Rah8 {[%clk 0:00:32]} 35. Rxd3 {[%clk 0:00:29]}  Bxd3 {[%clk 0:00:33]} 36. Kf2 {[%clk 0:00:26]}  Ra8 {[%clk 0:00:27]} 37. Be5+ {[%clk 0:00:24]}  Kg8 {[%clk 0:00:26]} 38. Bc7 {[%clk 0:00:19]}  bxa5 {[%clk 0:00:26]} 39. bxa5 {[%clk 0:00:20]}  Rha6 {[%clk 0:00:25]} 40. Rc1 {[%clk 0:00:20]}  Rc8 {[%clk 0:00:24]} 41. Rc5 {[%clk 0:00:18]}  Ra7 {[%clk 0:00:22]} 42. Bb6 {[%clk 0:00:11]}  Rxc5 {[%clk 0:00:23]} 43. Bxc5 {[%clk 0:00:12]}  Rxa5 {[%clk 0:00:24]} 44. Bd6 {[%clk 0:00:13]}  Ra2+ {[%clk 0:00:21]} 45. Kg3 {[%clk 0:00:13]}  Bf1 {[%clk 0:00:22]} 46. Kf4 {[%clk 0:00:13]}  Rxg2 {[%clk 0:00:15]} 47. Ke5 {[%clk 0:00:12]}  Bc4 {[%clk 0:00:15]} 48. Nf5 {[%clk 0:00:11]}  Kh7 {[%clk 0:00:16]} 49. Bc5 {[%clk 0:00:09]}  Rg6 {[%clk 0:00:14]} 50. Nd6 {[%clk 0:00:04]}  Re6+ {[%clk 0:00:14]} 51. Kf4 {[%clk 0:00:04]}  Kg6 {[%clk 0:00:13]} 52. e4 {[%clk 0:00:05]}  Bb3 {[%clk 0:00:10]} 53. exd5 {[%clk 0:00:04]}  Bxd5 {[%clk 0:00:11]} 54. Ne4 {[%clk 0:00:04]}  Rc6 {[%clk 0:00:09]} 55. Bd4 {[%clk 0:00:03]}  Rc4 {[%clk 0:00:08]} 56. Ke5 {[%clk 0:00:04]}  Ba8 {[%clk 0:00:07]} 57. Be3 {[%clk 0:00:04]}  Ra4 {[%clk 0:00:03]} 58. Nd6 {[%clk 0:00:04]}  Ra5+ {[%clk 0:00:02]} 59. Kf4 {[%clk 0:00:03]}  Ra4+ {[%clk 0:00:03]} 60. Kg3 {[%clk 0:00:04]}  Bd5 {[%clk 0:00:03]} 61. Nb5 {[%clk 0:00:03]}  Rb4 {[%clk 0:00:02]} 62. Nd4 {[%clk 0:00:03]}  Ra4 {[%clk 0:00:02]} 63. Kf2 {[%clk 0:00:04]}  Ra2+ {[%clk 0:00:02]} 64. Kg3 {[%clk 0:00:04]}  Ra3 {[%clk 0:00:03]} 65. Kf2 {[%clk 0:00:05]}  Rd3 {[%clk 0:00:03]} 66. Nb5 {[%clk 0:00:05]}  Bc6 {[%clk 0:00:03]} 67. Nd4 {[%clk 0:00:05]}  Bb7 {[%clk 0:00:03]} 68. Nb5 {[%clk 0:00:06]}  Kh5 {[%clk 0:00:03]} 69. Nd4 {[%clk 0:00:06]}  Bd5 {[%clk 0:00:03]} 70. Nf5 {[%clk 0:00:06]}  Ra3 {[%clk 0:00:02]} 71. Nd4 {[%clk 0:00:06]}  Ra2+ {[%clk 0:00:03]} 72. Kg3 {[%clk 0:00:07]}  Ra1 {[%clk 0:00:03]} 73. Kf2 {[%clk 0:00:07]}  Kh4 {[%clk 0:00:03]} 74. Bf4 {[%clk 0:00:05]}  Ra2+ {[%clk 0:00:03]} 75. Ke3 {[%clk 0:00:05]}  Ra3+ {[%clk 0:00:03]} 76. Kf2 {[%clk 0:00:06]}  Kh3 {[%clk 0:00:02]} 77. Be5 {[%clk 0:00:06]}  Rd3 {[%clk 0:00:02]} 78. Bf6 {[%clk 0:00:04]}  Rd2+ {[%clk 0:00:01]} 79. Ke3 {[%clk 0:00:04]}  Ra2 {[%clk 0:00:02]} 80. Kf4 {[%clk 0:00:04]}  Ra3 {[%clk 0:00:02]} 81. Be5 {[%clk 0:00:04]}  Rd3 {[%clk 0:00:02]} 82. Nb5 {[%clk 0:00:02]}  Rxf3+ {[%clk 0:00:02]} 83. Kg5 {[%clk 0:00:03]}  Be4 {[%clk 0:00:01]} 84. Nd6 {[%clk 0:00:03]}  Bd3 {[%clk 0:00:01]} 85. Bf6 {[%clk 0:00:03]}  Rg3+ {[%clk 0:00:01]} 86. Kh5 {[%clk 0:00:03]}  Bg6+ {[%clk 0:00:02]} 87. Kh6 {[%clk 0:00:03]}  Rf3 {[%clk 0:00:03]} 88. Kg7 {[%clk 0:00:03]}  Rd3 {[%clk 0:00:02]} 89. Nxf7 {[%clk 0:00:04]}  Bxf7 {[%clk 0:00:02]} 90. Kxf7 {[%clk 0:00:05]}  Kg4 {[%clk 0:00:03]} 91. Bg7 {[%clk 0:00:04]}  Kf5 {[%clk 0:00:03]} 92. Bb2 {[%clk 0:00:02]}  Rd7+ {[%clk 0:00:03]} 93. Kg8 {[%clk 0:00:02]}  Rb7 {[%clk 0:00:04]} 94. Bc3 {[%clk 0:00:01]}  Kg6 {[%clk 0:00:04]} 95. Kf8 {[%clk 0:00:01]}  Rc7 {[%clk 0:00:04]} 96. Bd4 {[%clk 0:00:01]}  Kf5 {[%clk 0:00:04]} 97. Bb2 {[%clk 0:00:02]}  Ke6 {[%clk 0:00:04]} 98. Bd4 {[%clk 0:00:01]}  Rb7 {[%clk 0:00:04]} 99. Be3 {[%clk 0:00:01]}  Kf6 {[%clk 0:00:04]} 100. Ke8 {[%clk 0:00:02]}  Re7+ {[%clk 0:00:04]} 101. Kd8 {[%clk 0:00:02]}  Rxe3 {[%clk 0:00:05]} 102. Kc7 {[%clk 0:00:01]} 0-1


[Site "https://www.chess.com"]

[Event "Titled Tuesday Blitz July 26 Early 2022"]
[White "Peiris, T G M"]
[Black "Devaev, Alexander"]
[WhiteFideId "9901310"]
[BlackFideId "4169395"]
[WhiteElo "2022"]
[BlackElo "2185"]
[Result "1-0"]
[Round "09"]
[TimeControl "180+1"]
[Date "2022.07.27"]
[WhiteClock "0:00:53"]
[BlackClock "0:00:01"]

1. Nf3 {[%clk 0:03:00]}  Nf6 {[%clk 0:02:54]} 2. c4 {[%clk 0:02:58]}  c5 {[%clk 0:02:55]} 3. Nc3 {[%clk 0:02:54]}  e6 {[%clk 0:02:55]} 4. d4 {[%clk 0:02:48]}  cxd4 {[%clk 0:02:56]} 5. Nxd4 {[%clk 0:02:47]}  a6 {[%clk 0:02:57]} 6. Bg5 {[%clk 0:02:46]}  Bb4 {[%clk 0:02:52]} 7. e3 {[%clk 0:02:44]}  Qa5 {[%clk 0:02:45]} 8. Bxf6 {[%clk 0:02:44]}  Bxc3+ {[%clk 0:02:41]} 9. bxc3 {[%clk 0:02:44]}  Qxc3+ {[%clk 0:02:42]} 10. Ke2 {[%clk 0:02:43]}  gxf6 {[%clk 0:02:29]} 11. Rc1 {[%clk 0:02:32]}  Qa5 {[%clk 0:02:26]} 12. g3 {[%clk 0:02:31]}  Qxa2+ {[%clk 0:02:16]} 13. Rc2 {[%clk 0:02:31]}  Qa5 {[%clk 0:02:15]} 14. Bg2 {[%clk 0:02:30]}  Nc6 {[%clk 0:02:13]} 15. Qd3 {[%clk 0:02:27]}  Qh5+ {[%clk 0:01:50]} 16. Bf3 {[%clk 0:02:26]}  Qg6 {[%clk 0:01:48]} 17. Be4 {[%clk 0:02:24]}  f5 {[%clk 0:01:47]} 18. Bg2 {[%clk 0:02:24]}  h5 {[%clk 0:01:29]} 19. Rd1 {[%clk 0:02:18]}  h4 {[%clk 0:01:30]} 20. Nxc6 {[%clk 0:02:14]}  bxc6 {[%clk 0:01:01]} 21. Bxc6 {[%clk 0:02:11]}  Ra7 {[%clk 0:01:02]} 22. Qd4 {[%clk 0:02:10]}  Qg4+ {[%clk 0:00:49]} 23. Bf3 {[%clk 0:01:58]}  Qxd4 {[%clk 0:00:49]} 24. Rxd4 {[%clk 0:01:57]}  hxg3 {[%clk 0:00:44]} 25. hxg3 {[%clk 0:01:58]}  Ke7 {[%clk 0:00:39]} 26. c5 {[%clk 0:01:58]}  Rc7 {[%clk 0:00:39]} 27. c6 {[%clk 0:01:55]}  d5 {[%clk 0:00:37]} 28. Ra4 {[%clk 0:01:53]}  Kd6 {[%clk 0:00:37]} 29. g4 {[%clk 0:01:45]}  fxg4 {[%clk 0:00:35]} 30. Bxg4 {[%clk 0:01:44]}  f5 {[%clk 0:00:29]} 31. Bf3 {[%clk 0:01:42]}  Rxc6 {[%clk 0:00:29]} 32. Rb2 {[%clk 0:01:42]}  Kc7 {[%clk 0:00:21]} 33. Kd3 {[%clk 0:01:42]}  Bb7 {[%clk 0:00:17]} 34. Rab4 {[%clk 0:01:41]}  Bc8 {[%clk 0:00:16]} 35. Bd1 {[%clk 0:01:41]}  Rh2 {[%clk 0:00:15]} 36. Ba4 {[%clk 0:01:40]}  Rc1 {[%clk 0:00:15]} 37. Kd2 {[%clk 0:01:36]}  Rc5 {[%clk 0:00:15]} 38. Kd3 {[%clk 0:01:36]}  a5 {[%clk 0:00:16]} 39. Rb6 {[%clk 0:01:32]}  Rc4 {[%clk 0:00:12]} 40. Be8 {[%clk 0:01:28]}  Rb4 {[%clk 0:00:09]} 41. Rc6+ {[%clk 0:01:13]}  Kd8 {[%clk 0:00:08]} 42. Rbc2 {[%clk 0:01:14]}  Bb7 {[%clk 0:00:06]} 43. Rxe6 {[%clk 0:01:13]}  Ba6+ {[%clk 0:00:03]} 44. Kc3 {[%clk 0:01:09]}  Rc4+ {[%clk 0:00:03]} 45. Kb2 {[%clk 0:01:09]}  Rxc2+ {[%clk 0:00:04]} 46. Kxc2 {[%clk 0:01:10]}  Rxf2+ {[%clk 0:00:04]} 47. Kc3 {[%clk 0:01:10]}  Bc8 {[%clk 0:00:05]} 48. Re5 {[%clk 0:01:08]}  Bb7 {[%clk 0:00:03]} 49. Bg6 {[%clk 0:01:07]}  Kc7 {[%clk 0:00:03]} 50. Bxf5 {[%clk 0:01:06]}  Kd6 {[%clk 0:00:03]} 51. Re6+ {[%clk 0:01:00]}  Kc5 {[%clk 0:00:04]} 52. Re7 {[%clk 0:00:58]}  Bc6 {[%clk 0:00:04]} 53. Bc8 {[%clk 0:00:56]}  a4 {[%clk 0:00:02]} 54. Ra7 {[%clk 0:00:56]}  Kb6 {[%clk 0:00:02]} 55. Rg7 {[%clk 0:00:53]}  Rb2 {[%clk 0:00:02]} 56. Kxb2 {[%clk 0:00:52]}  Kc5 {[%clk 0:00:01]} 57. Ka3 {[%clk 0:00:53]} 1-0


[Site "https://www.chess.com"]

[Event "Titled Tuesday Blitz July 26 Early 2022"]
[White "Pfreundt, Jakob"]
[Black "Derjabin, Ilja"]
[WhiteFideId "12918156"]
[BlackFideId "14104768"]
[WhiteElo "2345"]
[BlackElo "2341"]
[Result "1-0"]
[Round "09"]
[TimeControl "180+1"]
[Date "2022.07.27"]
[WhiteClock "0:00:18"]
[BlackClock "0:00:14"]

1. Nf3 {[%clk 0:03:00]}  c5 {[%clk 0:02:59]} 2. c4 {[%clk 0:03:00]}  Nf6 {[%clk 0:02:58]} 3. Nc3 {[%clk 0:03:00]}  d5 {[%clk 0:02:57]} 4. cxd5 {[%clk 0:02:59]}  Nxd5 {[%clk 0:02:57]} 5. d3 {[%clk 0:02:56]}  g6 {[%clk 0:02:55]} 6. g3 {[%clk 0:02:55]}  Bg7 {[%clk 0:02:52]} 7. Bd2 {[%clk 0:02:56]}  O-O {[%clk 0:02:47]} 8. Bg2 {[%clk 0:02:56]}  Nc6 {[%clk 0:02:48]} 9. Qc1 {[%clk 0:02:49]}  Be6 {[%clk 0:02:38]} 10. h4 {[%clk 0:02:48]}  Nd4 {[%clk 0:02:32]} 11. h5 {[%clk 0:02:42]}  Nxc3 {[%clk 0:02:25]} 12. Bxc3 {[%clk 0:02:36]}  Nxf3+ {[%clk 0:02:23]} 13. Bxf3 {[%clk 0:02:37]}  Bxc3+ {[%clk 0:02:19]} 14. Qxc3 {[%clk 0:02:37]}  Qd4 {[%clk 0:02:19]} 15. Qxd4 {[%clk 0:02:32]}  cxd4 {[%clk 0:02:19]} 16. Kd2 {[%clk 0:02:20]}  Rac8 {[%clk 0:02:16]} 17. Rhc1 {[%clk 0:02:13]}  b6 {[%clk 0:02:16]} 18. a4 {[%clk 0:02:00]}  a5 {[%clk 0:02:05]} 19. hxg6 {[%clk 0:01:58]}  hxg6 {[%clk 0:02:03]} 20. Bb7 {[%clk 0:01:58]}  Rxc1 {[%clk 0:01:56]} 21. Rxc1 {[%clk 0:01:59]}  Rb8 {[%clk 0:01:56]} 22. Ba6 {[%clk 0:01:55]}  Kg7 {[%clk 0:01:53]} 23. Rc7 {[%clk 0:01:49]}  Kf6 {[%clk 0:01:53]} 24. Bc4 {[%clk 0:01:40]}  Bxc4 {[%clk 0:01:41]} 25. Rxc4 {[%clk 0:01:41]}  b5 {[%clk 0:01:40]} 26. axb5 {[%clk 0:01:28]}  Rxb5 {[%clk 0:01:39]} 27. Kc2 {[%clk 0:01:03]}  e5 {[%clk 0:01:38]} 28. Rc7 {[%clk 0:00:57]}  Ke6 {[%clk 0:01:32]} 29. g4 {[%clk 0:00:57]}  f5 {[%clk 0:01:19]} 30. Rc6+ {[%clk 0:00:55]}  Kf7 {[%clk 0:01:18]} 31. g5 {[%clk 0:00:52]}  f4 {[%clk 0:00:56]} 32. Rf6+ {[%clk 0:00:47]}  Kg7 {[%clk 0:00:53]} 33. Ra6 {[%clk 0:00:48]}  Rc5+ {[%clk 0:00:50]} 34. Kd2 {[%clk 0:00:45]}  Rb5 {[%clk 0:00:50]} 35. Ra7+ {[%clk 0:00:40]}  Kf8 {[%clk 0:00:50]} 36. Ke1 {[%clk 0:00:35]}  e4 {[%clk 0:00:47]} 37. dxe4 {[%clk 0:00:33]}  Rxg5 {[%clk 0:00:47]} 38. Kd2 {[%clk 0:00:28]}  Rb5 {[%clk 0:00:46]} 39. Kd3 {[%clk 0:00:27]}  Rb3+ {[%clk 0:00:35]} 40. Kc2 {[%clk 0:00:26]}  Rh3 {[%clk 0:00:33]} 41. f3 {[%clk 0:00:23]}  g5 {[%clk 0:00:27]} 42. Rxa5 {[%clk 0:00:21]}  Rg3 {[%clk 0:00:28]} 43. Kd3 {[%clk 0:00:20]}  g4 {[%clk 0:00:27]} 44. Rf5+ {[%clk 0:00:20]}  Ke7 {[%clk 0:00:27]} 45. Rxf4 {[%clk 0:00:21]}  gxf3 {[%clk 0:00:28]} 46. exf3 {[%clk 0:00:20]}  Rg1 {[%clk 0:00:25]} 47. Kxd4 {[%clk 0:00:19]}  Rd1+ {[%clk 0:00:25]} 48. Ke5 {[%clk 0:00:19]}  Rb1 {[%clk 0:00:25]} 49. Rh4 {[%clk 0:00:18]}  Rxb2 {[%clk 0:00:25]} 50. Rh7+ {[%clk 0:00:18]}  Kf8 {[%clk 0:00:25]} 51. f4 {[%clk 0:00:19]}  Kg8 {[%clk 0:00:25]} 52. Rd7 {[%clk 0:00:18]}  Rb6 {[%clk 0:00:25]} 53. f5 {[%clk 0:00:18]}  Kf8 {[%clk 0:00:23]} 54. f6 {[%clk 0:00:18]}  Ke8 {[%clk 0:00:22]} 55. Re7+ {[%clk 0:00:19]}  Kf8 {[%clk 0:00:20]} 56. Kf5 {[%clk 0:00:19]}  Rb1 {[%clk 0:00:19]} 57. Ra7 {[%clk 0:00:19]}  Rb2 {[%clk 0:00:18]} 58. e5 {[%clk 0:00:19]}  Rb3 {[%clk 0:00:17]} 59. Ra8+ {[%clk 0:00:19]}  Kf7 {[%clk 0:00:14]} 60. e6# {[%clk 0:00:18]} 1-0


[Site "https://www.chess.com"]

[Event "Titled Tuesday Blitz July 26 Early 2022"]
[White "Plazuelo Pascual, Juan"]
[Black "Atakhan, Abtin"]
[WhiteFideId "32059566"]
[BlackFideId "22502203"]
[WhiteElo "2416"]
[BlackElo "2087"]
[Result "1-0"]
[Round "09"]
[TimeControl "180+1"]
[Date "2022.07.26"]
[WhiteClock "0:00:20"]
[BlackClock "0:00:04"]

1. d4 {[%clk 0:03:00]}  Nf6 {[%clk 0:02:32]} 2. c4 {[%clk 0:03:00]}  g6 {[%clk 0:02:32]} 3. Nc3 {[%clk 0:03:00]}  d5 {[%clk 0:02:31]} 4. cxd5 {[%clk 0:02:47]}  Nxd5 {[%clk 0:02:31]} 5. e4 {[%clk 0:02:44]}  Nxc3 {[%clk 0:02:32]} 6. bxc3 {[%clk 0:02:45]}  Bg7 {[%clk 0:02:33]} 7. Nf3 {[%clk 0:02:46]}  c5 {[%clk 0:02:32]} 8. Bb5+ {[%clk 0:02:47]}  Nc6 {[%clk 0:02:32]} 9. d5 {[%clk 0:02:35]}  Qa5 {[%clk 0:02:32]} 10. Rb1 {[%clk 0:02:25]}  a6 {[%clk 0:02:32]} 11. Ba4 {[%clk 0:02:16]}  b5 {[%clk 0:02:33]} 12. dxc6 {[%clk 0:02:11]}  bxa4 {[%clk 0:02:33]} 13. O-O {[%clk 0:02:08]}  O-O {[%clk 0:02:33]} 14. Bg5 {[%clk 0:02:04]}  Re8 {[%clk 0:02:12]} 15. h3 {[%clk 0:01:37]}  Be6 {[%clk 0:02:10]} 16. Rb7 {[%clk 0:01:30]}  Rac8 {[%clk 0:02:07]} 17. Rxe7 {[%clk 0:01:20]}  Red8 {[%clk 0:01:53]} 18. Rd7 {[%clk 0:01:09]}  f6 {[%clk 0:01:29]} 19. Qd6 {[%clk 0:00:53]}  Bxd7 {[%clk 0:01:05]} 20. cxd7 {[%clk 0:00:54]}  Ra8 {[%clk 0:00:48]} 21. Qe6+ {[%clk 0:00:42]}  Kh8 {[%clk 0:00:47]} 22. Bxf6 {[%clk 0:00:41]}  Rxd7 {[%clk 0:00:39]} 23. Qxd7 {[%clk 0:00:37]}  Bxf6 {[%clk 0:00:39]} 24. e5 {[%clk 0:00:38]}  Qd8 {[%clk 0:00:37]} 25. Qxa4 {[%clk 0:00:33]}  Bg7 {[%clk 0:00:38]} 26. Re1 {[%clk 0:00:32]}  Qe7 {[%clk 0:00:34]} 27. Qc6 {[%clk 0:00:32]}  Qf8 {[%clk 0:00:29]} 28. e6 {[%clk 0:00:29]}  Ra7 {[%clk 0:00:29]} 29. c4 {[%clk 0:00:24]}  h6 {[%clk 0:00:19]} 30. Qb6 {[%clk 0:00:23]}  Qe7 {[%clk 0:00:18]} 31. Rd1 {[%clk 0:00:21]}  Rb7 {[%clk 0:00:13]} 32. Qxa6 {[%clk 0:00:21]}  Kh7 {[%clk 0:00:11]} 33. Qd6 {[%clk 0:00:19]}  Bf8 {[%clk 0:00:05]} 34. Qxe7+ {[%clk 0:00:19]}  Bxe7 {[%clk 0:00:05]} 35. Rd7 {[%clk 0:00:19]}  Rxd7 {[%clk 0:00:04]} 36. exd7 {[%clk 0:00:20]}  Kg7 {[%clk 0:00:04]} 37. Ne5 {[%clk 0:00:20]} 1-0


[Site "https://www.chess.com"]

[Event "Titled Tuesday Blitz July 26 Early 2022"]
[White "Przybylski, Wojciech"]
[Black "Korchmar, Vasiliy"]
[WhiteFideId "1117599"]
[BlackFideId "24131750"]
[WhiteElo "2133"]
[BlackElo "2370"]
[Result "0-1"]
[Round "09"]
[TimeControl "180+1"]
[Date "2022.07.27"]
[WhiteClock "0:00:01"]
[BlackClock "0:01:18"]

1. d4 {[%clk 0:03:00]}  Nf6 {[%clk 0:02:56]} 2. Nf3 {[%clk 0:02:59]}  g6 {[%clk 0:02:56]} 3. g3 {[%clk 0:02:59]}  Bg7 {[%clk 0:02:56]} 4. Bg2 {[%clk 0:02:59]}  O-O {[%clk 0:02:56]} 5. O-O {[%clk 0:02:59]}  d6 {[%clk 0:02:57]} 6. Re1 {[%clk 0:02:58]}  Bf5 {[%clk 0:02:51]} 7. Nbd2 {[%clk 0:02:55]}  d5 {[%clk 0:02:48]} 8. c4 {[%clk 0:02:52]}  c6 {[%clk 0:02:48]} 9. b3 {[%clk 0:02:49]}  a5 {[%clk 0:02:48]} 10. Bb2 {[%clk 0:02:47]}  a4 {[%clk 0:02:48]} 11. b4 {[%clk 0:02:47]}  a3 {[%clk 0:02:47]} 12. Bc3 {[%clk 0:02:45]}  Ne4 {[%clk 0:02:47]} 13. Nxe4 {[%clk 0:02:43]}  Bxe4 {[%clk 0:02:48]} 14. c5 {[%clk 0:02:39]}  Na6 {[%clk 0:02:45]} 15. b5 {[%clk 0:02:24]}  cxb5 {[%clk 0:02:43]} 16. Qb3 {[%clk 0:02:22]}  Nc7 {[%clk 0:02:43]} 17. e3 {[%clk 0:02:15]}  Ra4 {[%clk 0:02:39]} 18. Nd2 {[%clk 0:02:10]}  Bxg2 {[%clk 0:02:28]} 19. Kxg2 {[%clk 0:02:11]}  Qd7 {[%clk 0:02:23]} 20. Bb4 {[%clk 0:02:07]}  Rfa8 {[%clk 0:02:22]} 21. Nb1 {[%clk 0:02:06]}  e5 {[%clk 0:02:23]} 22. Rd1 {[%clk 0:01:54]}  exd4 {[%clk 0:02:21]} 23. exd4 {[%clk 0:01:54]}  Ne6 {[%clk 0:02:17]} 24. Nc3 {[%clk 0:01:27]}  Nxd4 {[%clk 0:02:11]} 25. Qxd5 {[%clk 0:01:18]}  Qxd5+ {[%clk 0:01:45]} 26. Nxd5 {[%clk 0:01:19]}  Rd8 {[%clk 0:01:46]} 27. Ne7+ {[%clk 0:00:19]}  Kf8 {[%clk 0:01:46]} 28. c6 {[%clk 0:00:19]}  Rxb4 {[%clk 0:01:47]} 29. c7 {[%clk 0:00:19]}  Kxe7 {[%clk 0:01:46]} 30. cxd8=R {[%clk 0:00:18]}  Kxd8 {[%clk 0:01:47]} 31. Rd2 {[%clk 0:00:11]}  Kc7 {[%clk 0:01:46]} 32. Rad1 {[%clk 0:00:11]}  Kd6 {[%clk 0:01:41]} 33. Rd3 {[%clk 0:00:11]}  Ra4 {[%clk 0:01:37]} 34. Rb1 {[%clk 0:00:11]}  Kc5 {[%clk 0:01:30]} 35. Rc3+ {[%clk 0:00:11]}  Kd6 {[%clk 0:01:26]} 36. Rd3 {[%clk 0:00:10]}  f5 {[%clk 0:01:23]} 37. Re3 {[%clk 0:00:09]}  Bf6 {[%clk 0:01:20]} 38. Re8 {[%clk 0:00:09]}  Rc4 {[%clk 0:01:20]} 39. Rb8 {[%clk 0:00:09]}  Kc7 {[%clk 0:01:19]} 40. Ra8 {[%clk 0:00:08]}  b4 {[%clk 0:01:19]} 41. Ra4 {[%clk 0:00:06]}  Nc6 {[%clk 0:01:18]} 42. Rd1 {[%clk 0:00:02]}  Rc2 {[%clk 0:01:18]} 43. Ra8 {[%clk 0:00:02]}  Bd4 {[%clk 0:01:18]} 44. Rf8 {[%clk 0:00:01]}  Rxf2+ {[%clk 0:01:18]} 0-1


[Site "https://www.chess.com"]

[Event "Titled Tuesday Blitz July 26 Early 2022"]
[White "Ramirez Vido, Robert Yorisan"]
[Black "Aggelis, Nikolaos"]
[WhiteFideId "3513823"]
[BlackFideId "4213220"]
[WhiteElo "2413"]
[BlackElo "2154"]
[Result "1-0"]
[Round "09"]
[TimeControl "180+1"]
[Date "2022.07.27"]
[WhiteClock "0:00:08"]
[BlackClock "0:00:06"]

1. Nf3 {[%clk 0:02:30]}  c5 {[%clk 0:02:57]} 2. g3 {[%clk 0:02:30]}  Nc6 {[%clk 0:02:57]} 3. Bg2 {[%clk 0:02:31]}  g6 {[%clk 0:02:56]} 4. O-O {[%clk 0:02:31]}  Bg7 {[%clk 0:02:51]} 5. d3 {[%clk 0:02:30]}  e6 {[%clk 0:02:44]} 6. e4 {[%clk 0:02:30]}  d6 {[%clk 0:02:44]} 7. Re1 {[%clk 0:02:26]}  Nge7 {[%clk 0:02:43]} 8. c3 {[%clk 0:02:25]}  O-O {[%clk 0:02:38]} 9. d4 {[%clk 0:02:26]}  cxd4 {[%clk 0:02:37]} 10. cxd4 {[%clk 0:02:27]}  a6 {[%clk 0:02:20]} 11. a4 {[%clk 0:02:24]}  d5 {[%clk 0:02:10]} 12. e5 {[%clk 0:02:24]}  Qb6 {[%clk 0:02:06]} 13. g4 {[%clk 0:02:12]}  f6 {[%clk 0:01:56]} 14. exf6 {[%clk 0:02:06]}  Bxf6 {[%clk 0:01:56]} 15. Bh6 {[%clk 0:02:03]}  Re8 {[%clk 0:01:27]} 16. Be3 {[%clk 0:01:38]}  Qxb2 {[%clk 0:01:22]} 17. Na3 {[%clk 0:01:37]}  Qb4 {[%clk 0:01:12]} 18. Nc2 {[%clk 0:01:33]}  Qd6 {[%clk 0:01:11]} 19. Rb1 {[%clk 0:01:24]}  e5 {[%clk 0:01:10]} 20. dxe5 {[%clk 0:01:22]}  Nxe5 {[%clk 0:01:10]} 21. g5 {[%clk 0:01:15]}  Bg7 {[%clk 0:01:03]} 22. Bf4 {[%clk 0:01:08]}  N7c6 {[%clk 0:00:24]} 23. Nxe5 {[%clk 0:01:07]}  Nxe5 {[%clk 0:00:25]} 24. Qxd5+ {[%clk 0:01:07]}  Qxd5 {[%clk 0:00:25]} 25. Bxd5+ {[%clk 0:01:08]}  Be6 {[%clk 0:00:18]} 26. Bxe6+ {[%clk 0:00:59]}  Rxe6 {[%clk 0:00:18]} 27. Bxe5 {[%clk 0:00:48]}  Rxe5 {[%clk 0:00:19]} 28. Rxe5 {[%clk 0:00:45]}  Bxe5 {[%clk 0:00:20]} 29. Rxb7 {[%clk 0:00:45]}  Rc8 {[%clk 0:00:18]} 30. Ne3 {[%clk 0:00:43]}  Rf8 {[%clk 0:00:17]} 31. Ng4 {[%clk 0:00:38]}  Bd4 {[%clk 0:00:17]} 32. Rd7 {[%clk 0:00:34]}  Rf4 {[%clk 0:00:18]} 33. h3 {[%clk 0:00:30]}  a5 {[%clk 0:00:17]} 34. Rd5 {[%clk 0:00:18]}  Bg7 {[%clk 0:00:15]} 35. Rxa5 {[%clk 0:00:17]}  Bd4 {[%clk 0:00:15]} 36. Rd5 {[%clk 0:00:15]}  Bg7 {[%clk 0:00:14]} 37. a5 {[%clk 0:00:15]}  Ra4 {[%clk 0:00:13]} 38. Kg2 {[%clk 0:00:14]}  Kf8 {[%clk 0:00:13]} 39. Rb5 {[%clk 0:00:12]}  Ke8 {[%clk 0:00:12]} 40. Rb8+ {[%clk 0:00:11]}  Kf7 {[%clk 0:00:13]} 41. Rb7+ {[%clk 0:00:11]}  Kf8 {[%clk 0:00:13]} 42. Ra7 {[%clk 0:00:11]}  Bd4 {[%clk 0:00:12]} 43. Ra8+ {[%clk 0:00:10]}  Kg7 {[%clk 0:00:12]} 44. a6 {[%clk 0:00:10]}  Ra2 {[%clk 0:00:11]} 45. Rd8 {[%clk 0:00:09]}  Bb6 {[%clk 0:00:10]} 46. Rd7+ {[%clk 0:00:09]}  Kg8 {[%clk 0:00:10]} 47. Nf6+ {[%clk 0:00:09]}  Kf8 {[%clk 0:00:11]} 48. Nxh7+ {[%clk 0:00:07]}  Ke8 {[%clk 0:00:11]} 49. Nf6+ {[%clk 0:00:08]}  Kf8 {[%clk 0:00:11]} 50. Rh7 {[%clk 0:00:06]}  Rxa6 {[%clk 0:00:12]} 51. Rh8+ {[%clk 0:00:06]}  Kf7 {[%clk 0:00:11]} 52. Rh7+ {[%clk 0:00:06]}  Ke6 {[%clk 0:00:12]} 53. Rg7 {[%clk 0:00:07]}  Kf5 {[%clk 0:00:12]} 54. Ne8 {[%clk 0:00:06]}  Ra2 {[%clk 0:00:12]} 55. h4 {[%clk 0:00:06]}  Rxf2+ {[%clk 0:00:11]} 56. Kg3 {[%clk 0:00:07]}  Ra2 {[%clk 0:00:11]} 57. Rf7+ {[%clk 0:00:07]}  Ke6 {[%clk 0:00:11]} 58. Rf6+ {[%clk 0:00:07]}  Ke7 {[%clk 0:00:11]} 59. Rxb6 {[%clk 0:00:08]}  Kxe8 {[%clk 0:00:12]} 60. Rxg6 {[%clk 0:00:09]}  Kf7 {[%clk 0:00:12]} 61. Rf6+ {[%clk 0:00:09]}  Kg7 {[%clk 0:00:12]} 62. Kg4 {[%clk 0:00:09]}  Rg2+ {[%clk 0:00:11]} 63. Kh5 {[%clk 0:00:09]}  Ra2 {[%clk 0:00:10]} 64. Rg6+ {[%clk 0:00:10]}  Kh7 {[%clk 0:00:10]} 65. Rb6 {[%clk 0:00:11]}  Ra7 {[%clk 0:00:10]} 66. g6+ {[%clk 0:00:09]}  Kg7 {[%clk 0:00:08]} 67. Rb5 {[%clk 0:00:08]}  Ra6 {[%clk 0:00:09]} 68. Rb7+ {[%clk 0:00:08]}  Kg8 {[%clk 0:00:08]} 69. Kh6 {[%clk 0:00:08]}  Ra8 {[%clk 0:00:08]} 70. h5 {[%clk 0:00:09]}  Rc8 {[%clk 0:00:07]} 71. Rg7+ {[%clk 0:00:09]}  Kh8 {[%clk 0:00:06]} 72. Rd7 {[%clk 0:00:08]}  Ra8 {[%clk 0:00:06]} 73. Kg5 {[%clk 0:00:07]}  Ra5+ {[%clk 0:00:05]} 74. Kh6 {[%clk 0:00:07]}  Ra8 {[%clk 0:00:05]} 75. Re7 {[%clk 0:00:08]}  Rb8 {[%clk 0:00:06]} 76. Kg5 {[%clk 0:00:08]}  Rb5+ {[%clk 0:00:05]} 77. Kf6 {[%clk 0:00:08]}  Rb7 {[%clk 0:00:06]} 78. Rxb7 {[%clk 0:00:08]} 1-0


[Site "https://www.chess.com"]